fUST/lending_fUST_20250822
["ID","MTS","AMOUNT","RATE_DAILY","PERIOD"]
[380487469,1755792651880,-480.0,0.00020402,2]
[380487470,1755792651890,-480.0,0.00020402,2]
[380487471,1755792651899,-1688.72,0.00020402,2]
[380487472,1755792651909,-480.0,0.00020402,2]
[380487473,1755792651919,-883.28,0.00020402,2]
[380487474,1755792651928,-480.0,0.00020402,2]
[380487475,1755792651938,-480.0,0.00020402,2]
[380487476,1755792651947,-480.0,0.00020402,2]
[380487477,1755792651956,-678.29,0.00020402,2]
[380487478,1755792651966,-805.31,0.00020402,2]
[380487479,1755792651975,-595.32,0.00020402,2]
[380487480,1755792651985,-151.0,0.00020402,2]
[380487481,1755792651994,-480.0,0.00020402,2]
[380487482,1755792652003,-623.8,0.00020402,2]
[380487483,1755792652012,-480.0,0.00020402,2]
[380487484,1755792652021,-654.21,0.00020402,2]
[380487485,1755792652032,-480.0,0.00020402,2]
[380487486,1755792652042,-480.0,0.00020402,2]
[380487487,1755792652051,-1141.85,0.00020402,2]
[380487488,1755792652062,-480.0,0.00020402,2]
[380487489,1755792652071,-480.0,0.00020402,2]
[380487490,1755792652081,-480.0,0.00020402,2]
[380487491,1755792652090,-480.0,0.00020402,2]
[380487492,1755792652100,-480.0,0.00020402,2]
[380487493,1755792652109,-480.0,0.00020402,2]
[380487494,1755792652120,-480.0,0.00020402,2]
[380487495,1755792652129,-480.0,0.00020402,2]
[380487496,1755792652139,-480.0,0.00020402,2]
[380487497,1755792652148,-480.0,0.00020402,2]
[380487498,1755792652157,-480.0,0.00020402,2]
[380487500,1755792652167,-480.0,0.00020403,2]
[380487502,1755792652176,-2206.27,0.00020403,2]
[380487504,1755792652186,-1199.85,0.00020403,2]
[380487505,1755792652195,-1271.25,0.00020403,2]
[380487507,1755792652204,-534.9,0.00020403,2]
[380487509,1755792652213,-460.0,0.00020403,2]
[380487511,1755792652223,-1930.33,0.00020403,2]
[380487513,1755792652232,-1041.35,0.00020403,2]
[380487515,1755792652241,-524.1,0.00020403,2]
[380487517,1755792652250,-1265.11,0.00020403,2]
[380487519,1755792652260,-539.51,0.00020403,2]
[380487521,1755792652269,-298.74920764,0.00020403,2]
[380487523,1755792652279,-480.0,0.00020403,2]
[380487525,1755792652288,-480.0,0.00020403,2]
[380487527,1755792652300,-1250.1,0.00020403,2]
[380487529,1755792652309,-672.29,0.00020403,2]
[380487531,1755792652319,-1361.55,0.00020403,2]
[380487533,1755792652329,-1605.36,0.00020404,2]
[380487535,1755792652342,-761.9,0.00020404,2]
[380487537,1755792652352,-480.0,0.00020404,2]
[380487539,1755792652361,-480.0,0.00020404,2]
[380487541,1755792652370,-1059.06,0.00020404,2]
[380487543,1755792652380,-630.63,0.00020404,2]
[380487544,1755792652390,-401.35156625,0.00020404,2]
[380487546,1755792652408,-480.0,0.00020404,2]
[380487548,1755792652417,-480.0,0.00020404,2]
[380487550,1755792652426,-545.73,0.00020404,2]
[380487552,1755792652435,-1260.8,0.00020404,2]
[380487554,1755792652445,-480.0,0.00020404,2]
[380487555,1755792652453,-480.0,0.00020404,2]
[380487557,1755792652462,-480.0,0.00020404,2]
[380487559,1755792652471,-480.0,0.00020404,2]
[380487561,1755792652480,-480.0,0.00020404,2]
[380487563,1755792652489,-480.0,0.00020404,2]
[380487565,1755792652498,-562.67,0.00020404,2]
[380487566,1755792652507,-480.0,0.00020404,2]
[380487567,1755792652516,-249.62843557,0.00020404,2]
[380487568,1755792652524,-480.0,0.00020404,2]
[380487570,1755792652536,-480.0,0.00020404,2]
[380487572,1755792652545,-480.0,0.00020404,2]
[380487574,1755792652554,-480.0,0.00020404,2]
[380487575,1755792652563,-491.57,0.00020404,2]
[380487577,1755792652572,-485.26,0.00020404,2]
[380487579,1755792652582,-480.0,0.00020404,2]
[380487580,1755792652591,-480.0,0.00020404,2]
[380487581,1755792652600,-480.0,0.00020404,2]
[380487582,1755792652610,-409.12539468,0.00020404,2]
[380487583,1755792652619,-480.0,0.00020404,2]
[380487584,1755792652629,-536.24,0.00020404,2]
[380487585,1755792652638,-480.0,0.00020404,2]
[380487586,1755792652647,-480.0,0.00020404,2]
[380487587,1755792652656,-481.14,0.00020404,2]
[380487588,1755792652666,-480.0,0.00020404,2]
[380487589,1755792652675,-542.76,0.00020404,2]
[380487590,1755792652684,-480.0,0.00020404,2]
[380487591,1755792652694,-480.0,0.00020404,2]
[380487592,1755792652703,-480.0,0.00020404,2]
[380487593,1755792652712,-195.728018,0.00020404,2]
[380487594,1755792652722,-876.26,0.00020404,2]
[380487595,1755792652731,-1050.92,0.00020404,2]
[380487596,1755792652740,-969.2,0.00020404,2]
[380487597,1755792652750,-480.0,0.00020404,2]
[380487598,1755792652760,-500.0,0.00020404,2]
[380487599,1755792652769,-1455.35,0.00020404,2]
[380487600,1755792652780,-480.0,0.00020404,2]
[380487601,1755792652790,-480.0,0.00020404,2]
[380487602,1755792652799,-347.84097656,0.00020404,2]
[380487603,1755792652808,-727.67,0.00020404,2]
[380487604,1755792652817,-480.0,0.00020404,2]
[380487605,1755792652826,-480.0,0.00020404,2]
[380487606,1755792652840,-605.54,0.00020404,2]
[380487607,1755792652849,-480.0,0.00020404,2]
[380487608,1755792652858,-480.0,0.00020404,2]
[380487609,1755792652868,-480.0,0.00020404,2]
[380487610,1755792652877,-480.0,0.00020404,2]
[380487611,1755792652887,-480.0,0.00020404,2]
[380487612,1755792652897,-293.57254658,0.00020404,2]
[380487613,1755792652907,-920.15,0.00020404,2]
[380487614,1755792652917,-480.0,0.00020404,2]
[380487615,1755792652926,-480.0,0.00020404,2]
[380487616,1755792652935,-480.0,0.00020404,2]
[380487617,1755792652944,-902.24,0.00020404,2]
[380487618,1755792652954,-480.0,0.00020404,2]
[380487619,1755792652963,-480.0,0.00020404,2]
[380487620,1755792652972,-873.16,0.00020404,2]
[380487621,1755792653101,-762.55,0.00020404,2]
[380487622,1755792653127,-2255.59,0.00020404,2]
[380487623,1755792653137,-480.0,0.00020404,2]
[380487624,1755792653147,-480.0,0.00020404,2]
[380487625,1755792653156,-480.0,0.00020404,2]
[380487626,1755792653166,-480.0,0.00020404,2]
[380487627,1755792653176,-480.0,0.00020404,2]
[380487628,1755792653186,-480.0,0.00020404,2]
[380487629,1755792653196,-628.03,0.00020404,2]
[380487630,1755792653205,-480.0,0.00020404,2]
[380487631,1755792653215,-480.0,0.00020404,2]
[380487632,1755792653224,-676.81,0.00020404,2]
[380487633,1755792653233,-480.0,0.00020404,2]
[380487634,1755792653242,-1194.08,0.00020404,2]
[380487635,1755792653252,-480.0,0.00020404,2]
[380487636,1755792653261,-480.0,0.00020404,2]
[380487637,1755792653271,-687.56,0.00020404,2]
[380487638,1755792653280,-566.18,0.00020404,2]
[380487639,1755792653289,-480.0,0.00020404,2]
[380487640,1755792653298,-621.55,0.00020404,2]
[380487641,1755792653308,-622.62,0.00020404,2]
[380487642,1755792653317,-841.45,0.00020404,2]
[380487643,1755792653327,-720.27,0.00020404,2]
[380487644,1755792653339,-832.27,0.00020404,2]
[380487645,1755792653348,-798.23,0.00020404,2]
[380487646,1755792653358,-480.0,0.00020404,2]
[380487647,1755792653368,-481.15,0.00020404,2]
[380487648,1755792653379,-176.031406,0.0002046,2]
[380487649,1755792653388,-176.031406,0.0002046,2]
[380487650,1755792653397,-176.031406,0.0002046,2]
[380487651,1755792653407,-176.031406,0.0002046,2]
[380487652,1755792653418,-151.0,0.0002046,2]
[380487653,1755792653427,-151.0,0.0002046,2]
[380487654,1755792653437,-1979.27886464,0.00020477,2]
[380487655,1755792653447,-480.0,0.00020574,2]
[380487656,1755792653457,-1033.95,0.00020574,2]
[380487657,1755792653467,-1383.74,0.00020574,2]
[380487658,1755792653477,-1416.97,0.00020574,2]
[380487659,1755792653487,-1731.53,0.00020574,2]
[380487660,1755792653497,-4873.19,0.00020574,2]
[380487661,1755792653506,-480.0,0.00020574,2]
[380487662,1755792653515,-480.0,0.00020575,2]
[380487663,1755792653525,-9261.16,0.00020575,2]
[380487664,1755792653536,-480.0,0.00020575,2]
[380487665,1755792653546,-520.08,0.00020575,2]
[380487666,1755792653555,-480.0,0.00020575,2]
[380487667,1755792653564,-5781.11,0.00020575,2]
[380487668,1755792653574,-845.86,0.00020575,2]
[380487669,1755792653583,-2462.84,0.00020575,2]
[380487670,1755792653593,-1645.06,0.00020575,2]
[380487671,1755792653602,-784.64,0.00020575,2]
[380487672,1755792653612,-6568.32,0.00020575,2]
[380487673,1755792653622,-564.77,0.00020575,2]
[380487674,1755792653631,-480.0,0.00020575,2]
[380487675,1755792653641,-9851.75,0.00020575,2]
[380487676,1755792653650,-5188.11,0.00020575,2]
[380487677,1755792653660,-1689.92,0.00020575,2]
[380487678,1755792653670,-2138.03,0.00020575,2]
[380487679,1755792653679,-480.0,0.00020575,2]
[380487680,1755792653689,-480.0,0.00020577,2]
[380487681,1755792653698,-480.0,0.00020577,2]
[380487682,1755792653708,-480.0,0.00020577,2]
[380487683,1755792653717,-1568.13,0.00020577,2]
[380487684,1755792653726,-480.0,0.00020577,2]
[380487685,1755792653736,-1127.79,0.00020577,2]
[380487686,1755792653746,-480.0,0.00020577,2]
[380487687,1755792653755,-480.0,0.00020577,2]
[380487688,1755792653764,-480.0,0.00020577,2]
[380487689,1755792653773,-480.0,0.00020577,2]
[380487690,1755792653783,-512.54264544,0.00020577,2]
[380487691,1755792653793,-924.15,0.00020577,2]
[380487692,1755792653803,-525.29699313,0.00020577,2]
[380487693,1755792653812,-673.15,0.00020577,2]
[380487694,1755792653823,-613.82,0.00020577,2]
[380487695,1755792653832,-640.43,0.00020577,2]
[380487696,1755792653841,-480.0,0.00020577,2]
[380487697,1755792653850,-480.0,0.00020577,2]
[380487698,1755792653859,-571.23112435,0.00020577,2]
[380487699,1755792653868,-631.43,0.00020577,2]
[380487700,1755792653878,-488.68,0.00020577,2]
[380487701,1755792653887,-781.49,0.00020577,2]
[380487702,1755792653896,-480.0,0.00020577,2]
[380487703,1755792653906,-606.04,0.00020577,2]
[380487704,1755792653916,-480.0,0.00020577,2]
[380487705,1755792653925,-480.0,0.00020577,2]
[380487706,1755792653936,-4142.34,0.00020577,2]
[380487707,1755792653946,-742.9,0.00020577,2]
[380487708,1755792653955,-480.0,0.00020577,2]
[380487709,1755792653965,-2445.24,0.00020577,2]
[380487710,1755792653975,-1844.75,0.00020577,2]
[380487711,1755792653984,-639.64,0.00020577,2]
[380487712,1755792653994,-2736.27,0.00020577,2]
[380487713,1755792654003,-1519.12,0.00020577,2]
[380487714,1755792654013,-1026.67,0.00020577,2]
[380487715,1755792654023,-2112.29,0.00020577,2]
[380487716,1755792654032,-753.81,0.00020577,2]
[380487717,1755792654042,-5333.68,0.00020577,2]
[380487718,1755792654052,-2206.67,0.00020577,2]
[380487719,1755792654062,-480.0,0.00020577,2]
[380487720,1755792654072,-623.89,0.00020577,2]
[380487721,1755792654081,-684.76,0.00020577,2]
[380487722,1755792654090,-480.0,0.00020577,2]
[380487723,1755792654099,-878.72,0.00020577,2]
[380487724,1755792654109,-511.33,0.00020577,2]
[380487725,1755792654119,-480.0,0.00020577,2]
[380487726,1755792654130,-480.0,0.00020577,2]
[380487727,1755792654140,-480.0,0.00020577,2]
[380487728,1755792654150,-480.0,0.00020577,2]
[380487729,1755792654160,-540.9,0.00020577,2]
[380487730,1755792654170,-480.0,0.00020577,2]
[380487731,1755792654180,-480.0,0.00020577,2]
[380487732,1755792654190,-930.22,0.00020577,2]
[380487733,1755792654199,-480.0,0.00020577,2]
[380487734,1755792654209,-2708.1,0.00020577,2]
[380487735,1755792654219,-480.0,0.00020577,2]
[380487736,1755792654229,-2394.57,0.00020577,2]
[380487737,1755792654239,-811.16,0.00020577,2]
[380487738,1755792654249,-1261.19,0.00020577,2]
[380487739,1755792654258,-1139.83,0.00020577,2]
[380487740,1755792654268,-545.91865272,0.00020577,2]
[380487741,1755792654313,-2224.99134728,0.00020577,2]
[380487742,1755792654323,-1301.55394759,0.00020577,2]
[380487743,1755792654340,-737.66493114,0.00020577,2]
[380487744,1755792654352,-2111.97112127,0.00020577,2]
[380487745,1755792654362,-725.82,0.00020577,2]
[380487746,1755792654372,-480.0,0.00020577,2]
[380487747,1755792654382,-627.54,0.00020577,2]
[380487748,1755792654392,-480.0,0.00020577,2]
[380487749,1755792654402,-480.0,0.00020577,2]
[380487750,1755792654414,-506.34,0.00020577,2]
[380487751,1755792654424,-875.12,0.00020577,2]
[380487752,1755792654433,-215.12655465,0.00020577,2]
[380487753,1755792654445,-453.86344535,0.00020577,2]
[380487754,1755792654455,-1286.17,0.00020577,2]
[380487755,1755792654465,-500.0,0.00020673,2]
[380487756,1755792654475,-500.5905417,0.00020673,2]
[380487757,1755792654484,-500.0,0.00020673,2]
[380487758,1755792654493,-500.0,0.00020673,2]
[380487759,1755792654503,-264.81415349,0.00020673,2]
[380487760,1755792654512,-256.89692832,0.00020673,2]
[380487761,1755792654528,-151.0,0.00020027,2]
[380487762,1755792654538,-243.10307168,0.00020673,2]
[380487763,1755792654549,-507.73976705,0.00020673,2]
[380487764,1755792654558,-500.0,0.00020673,2]
[380487765,1755792654567,-501.60386368,0.00020673,2]
[380487766,1755792654576,-1752.64,0.00020674,2]
[380487767,1755792654586,-480.0,0.00020674,2]
[380487768,1755792654595,-2281.05,0.00020674,2]
[380487769,1755792654604,-1729.33,0.00020674,2]
[380487770,1755792654614,-551.01,0.00020674,2]
[380487771,1755792654623,-893.08,0.00020674,2]
[380487772,1755792654633,-1122.39,0.00020674,2]
[380487773,1755792654642,-480.0,0.00020674,2]
[380487774,1755792654651,-972.84,0.00020675,2]
[380487775,1755792654661,-545.17,0.00020675,2]
[380487776,1755792654670,-2108.19,0.00020675,2]
[380487777,1755792654679,-1113.26846457,0.00020675,2]
[380487778,1755792654692,-206.25153543,0.00020675,2]
[380487779,1755792654701,-480.0,0.00020675,2]
[380487780,1755792654710,-480.0,0.00020675,2]
[380487781,1755792654719,-508.66,0.00020675,2]
[380487782,1755792654729,-1419.25,0.00020675,2]
[380487783,1755792654738,-1217.83,0.00020675,2]
[380487784,1755792654747,-1135.00652967,0.00020675,2]
[380487785,1755792654759,-990.28347033,0.00020675,2]
[380487786,1755792654769,-480.0,0.00020675,2]
[380487787,1755792654780,-480.0,0.00020675,2]
[380487788,1755792654789,-480.0,0.00020675,2]
[380487789,1755792654798,-592.9,0.00020675,2]
[380487790,1755792654808,-480.0,0.00020675,2]
[380487791,1755792654817,-480.0,0.00020675,2]
[380487792,1755792654827,-480.0,0.00020675,2]
[380487793,1755792654838,-693.22,0.00020675,2]
[380487794,1755792654848,-704.43,0.00020675,2]
[380487795,1755792654857,-593.79,0.00020675,2]
[380487796,1755792654867,-2629.88,0.00020675,2]
[380487797,1755792654876,-480.0,0.00020675,2]
[380487798,1755792654886,-480.0,0.00020675,2]
[380487799,1755792654895,-480.0,0.00020675,2]
[380487800,1755792654905,-871.64,0.00020675,2]
[380487801,1755792654914,-1047.54,0.00020675,2]
[380487802,1755792654924,-282.06481914,0.00020675,2]
[380487803,1755792654936,-197.93518086,0.00020675,2]
[380487804,1755792654945,-665.21,0.00020675,2]
[380487805,1755792654955,-838.72,0.00020675,2]
[380487806,1755792654964,-480.0,0.00020675,2]
[380487807,1755792654974,-1951.02,0.00020675,2]
[380487808,1755792654983,-1225.69,0.00020675,2]
[380487809,1755792654992,-480.0,0.00020675,2]
[380487810,1755792655001,-1148.05,0.00020675,2]
[380487811,1755792655010,-480.0,0.00020675,2]
[380487812,1755792655019,-905.9,0.00020675,2]
[380487813,1755792655030,-480.0,0.00020675,2]
[380487814,1755792655039,-480.0,0.00020675,2]
[380487815,1755792655049,-443.13849968,0.00020675,2]
[380487816,1755792655059,-480.0,0.00020675,2]
[380487817,1755792655068,-480.0,0.00020675,2]
[380487818,1755792655077,-1201.51,0.00020675,2]
[380487819,1755792655087,-387.57509309,0.00020675,2]
[380487820,1755792655096,-991.42,0.00020675,2]
[380487821,1755792655106,-635.38,0.00020675,2]
[380487822,1755792655115,-2580.53,0.00020675,2]
[380487823,1755792655125,-2681.63,0.00020675,2]
[380487824,1755792655134,-480.0,0.00020675,2]
[380487825,1755792655144,-3086.85,0.00020675,2]
[380487826,1755792655153,-1124.65,0.00020675,2]
[380487827,1755792655163,-2333.17,0.00020675,2]
[380487828,1755792655172,-480.0,0.00020675,2]
[380487829,1755792655181,-4745.25,0.00020675,2]
[380487830,1755792655191,-5463.78,0.00020675,2]
[380487831,1755792655201,-480.0,0.00020675,2]
[380487832,1755792655211,-2232.6,0.00020675,2]
[380487833,1755792655220,-7051.64,0.00020675,2]
[380487834,1755792655230,-16556.38,0.00020675,2]
[380487835,1755792655240,-496.36,0.00020675,2]
[380487836,1755792655250,-913.33,0.00020675,2]
[380487838,1755792655260,-1041.52,0.00020675,2]
[380487840,1755792655269,-4629.04,0.00020675,2]
[380487842,1755792655280,-15911.18,0.00020675,2]
[380487844,1755792655289,-904.6,0.00020675,2]
[380487846,1755792655299,-576.76,0.00020675,2]
[380487848,1755792655309,-1009.82,0.00020675,2]
[380487850,1755792655319,-3188.4,0.00020675,2]
[380487852,1755792655328,-2295.04,0.00020675,2]
[380487854,1755792655342,-12140.01,0.00020675,2]
[380487856,1755792655352,-5066.31,0.00020675,2]
[380487858,1755792655361,-1020.76,0.00020675,2]
[380487860,1755792655370,-826.64,0.00020675,2]
[380487862,1755792655381,-1220.33,0.00020675,2]
[380487863,1755792655391,-480.0,0.00020675,2]
[380487865,1755792655400,-736.95,0.00020676,2]
[380487867,1755792655411,-480.0,0.00020676,2]
[380487869,1755792655420,-480.0,0.00020676,2]
[380487871,1755792655430,-480.0,0.00020676,2]
[380487873,1755792655439,-480.0,0.00020676,2]
[380487875,1755792655449,-480.0,0.00020676,2]
[380487877,1755792655458,-480.0,0.00020676,2]
[380487879,1755792655468,-480.0,0.00020676,2]
[380487881,1755792655477,-480.0,0.00020676,2]
[380487883,1755792655487,-660.39,0.00020676,2]
[380487885,1755792655498,-480.0,0.00020676,2]
[380487887,1755792655507,-480.0,0.00020676,2]
[380487889,1755792655517,-581.36,0.00020676,2]
[380487891,1755792655526,-480.0,0.00020676,2]
[380487893,1755792655537,-1483.21,0.00020676,2]
[380487895,1755792655546,-480.0,0.00020676,2]
[380487897,1755792655555,-906.14,0.00020676,2]
[380487899,1755792655565,-480.0,0.00020676,2]
[380487901,1755792655574,-480.0,0.00020676,2]
[380487903,1755792655584,-1039.36,0.00020676,2]
[380487905,1755792655594,-1117.72,0.00020676,2]
[380487907,1755792655603,-480.0,0.00020676,2]
[380487909,1755792655613,-480.0,0.00020676,2]
[380487910,1755792655623,-480.0,0.00020676,2]
[380487911,1755792655636,-480.0,0.00020676,2]
[380487912,1755792655646,-483.41489811,0.00020676,2]
[380487913,1755792655785,-480.0,0.00020676,2]
[380487914,1755792655795,-480.0,0.00020676,2]
[380487915,1755792655804,-611.86,0.00020676,2]
[380487916,1755792655812,-480.0,0.00020676,2]
[380487917,1755792655821,-480.0,0.00020676,2]
[380487918,1755792655830,-480.0,0.00020676,2]
[380487919,1755792655838,-480.0,0.00020676,2]
[380487920,1755792655847,-480.0,0.00020676,2]
[380487921,1755792655857,-480.0,0.00020676,2]
[380487922,1755792655866,-480.0,0.00020676,2]
[380487923,1755792655875,-480.0,0.00020676,2]
[380487924,1755792655886,-480.0,0.00020676,2]
[380487925,1755792655895,-1688.72,0.00020676,2]
[380487926,1755792655904,-480.0,0.00020676,2]
[380487927,1755792655914,-883.28,0.00020676,2]
[380487928,1755792655923,-481.94065823,0.00020676,2]
[380487929,1755792655933,-480.0,0.00020676,2]
[380487930,1755792655942,-480.0,0.00020676,2]
[380487931,1755792655951,-678.29,0.00020676,2]
[380487932,1755792655961,-805.31,0.00020676,2]
[380487934,1755792655971,-595.32,0.00020676,2]
[380487935,1755792655981,-480.0,0.00020676,2]
[380487937,1755792655990,-623.8,0.00020676,2]
[380487939,1755792655999,-480.0,0.00020676,2]
[380487940,1755792656009,-654.21,0.00020676,2]
[380487941,1755792656019,-176.031406,0.00020676,2]
[380487942,1755792656030,-176.031406,0.00020676,2]
[380487943,1755792656040,-176.031406,0.00020676,2]
[380487944,1755792656050,-176.031406,0.00020676,2]
[380487945,1755792656059,-443.16792609,0.00020676,2]
[380487946,1755792656068,-480.0,0.00020676,2]
[380487947,1755792656077,-1141.85,0.00020676,2]
[380487948,1755792656086,-151.0,0.00020676,2]
[380487949,1755792656099,-480.0,0.00020676,2]
[380487950,1755792656109,-480.0,0.00020676,2]
[380487951,1755792656118,-480.0,0.00020676,2]
[380487953,1755792656127,-480.0,0.00020676,2]
[380487955,1755792656136,-480.0,0.00020676,2]
[380487957,1755792656146,-480.0,0.00020676,2]
[380487959,1755792656155,-480.0,0.00020676,2]
[380487960,1755792656165,-460.0,0.00020676,2]
[380487961,1755792656175,-480.0,0.00020676,2]
[380487962,1755792656184,-480.0,0.00020676,2]
[380487963,1755792656194,-480.0,0.00020677,2]
[380487964,1755792656203,-2206.27,0.00020677,2]
[380487965,1755792656213,-1199.85,0.00020677,2]
[380487966,1755792656223,-1271.25,0.00020677,2]
[380487967,1755792656232,-534.9,0.00020677,2]
[380487968,1755792656242,-1930.33,0.00020677,2]
[380487969,1755792656252,-1041.35,0.00020677,2]
[380487970,1755792656261,-524.1,0.00020677,2]
[380487971,1755792656271,-1265.11,0.00020677,2]
[380487972,1755792656279,-539.51,0.00020677,2]
[380487973,1755792656301,-480.0,0.00020677,2]
[380487974,1755792656316,-1250.1,0.00020677,2]
[380487975,1755792656326,-672.29,0.00020677,2]
[380487976,1755792656339,-1361.55,0.00020677,2]
[380487977,1755792656348,-1605.36,0.00020678,2]
[380487978,1755792656358,-761.9,0.00020678,2]
[380487979,1755792656367,-367.58515724,0.00020678,2]
[380487980,1755792656376,-397.91284392,0.00020678,2]
[380487981,1755792656386,-1059.06,0.00020678,2]
[380487982,1755792656395,-630.63,0.00020678,2]
[380487983,1755792656404,-480.0,0.00020678,2]
[380487984,1755792656415,-442.61359182,0.00020678,2]
[380487985,1755792656425,-545.73,0.00020678,2]
[380487986,1755792656434,-1260.8,0.00020678,2]
[380487987,1755792656443,-480.0,0.00020678,2]
[380487988,1755792656452,-445.06177301,0.00020678,2]
[380487989,1755792656462,-470.35130076,0.00020678,2]
[380487990,1755792656472,-480.0,0.00020678,2]
[380487991,1755792656481,-480.0,0.00020678,2]
[380487992,1755792656491,-480.0,0.00020678,2]
[380487993,1755792656501,-562.67,0.00020678,2]
[380487994,1755792656511,-480.0,0.00020678,2]
[380487995,1755792656520,-480.0,0.00020678,2]
[380487996,1755792656529,-480.0,0.00020678,2]
[380487997,1755792656539,-480.0,0.00020678,2]
[380487998,1755792656548,-480.0,0.00020678,2]
[380487999,1755792656558,-491.57,0.00020678,2]
[380488000,1755792656567,-485.26,0.00020678,2]
[380488001,1755792656576,-480.0,0.00020678,2]
[380488002,1755792656586,-431.52281668,0.00020678,2]
[380488003,1755792656595,-480.0,0.00020678,2]
[380488005,1755792656604,-536.24,0.00020678,2]
[380488007,1755792656614,-480.0,0.00020678,2]
[380488009,1755792656623,-480.0,0.00020678,2]
[380488011,1755792656632,-481.14,0.00020678,2]
[380488013,1755792656641,-480.0,0.00020678,2]
[380488015,1755792656651,-542.76,0.00020678,2]
[380488017,1755792656660,-480.0,0.00020678,2]
[380488019,1755792656670,-480.0,0.00020678,2]
[380488021,1755792656678,-480.0,0.00020678,2]
[380488023,1755792656687,-876.26,0.00020678,2]
[380488025,1755792656696,-1050.92,0.00020678,2]
[380488027,1755792656705,-969.2,0.00020678,2]
[380488029,1755792656714,-480.0,0.00020678,2]
[380488030,1755792656723,-500.0,0.00020678,2]
[380488032,1755792656733,-1455.35,0.00020678,2]
[380488034,1755792656742,-480.0,0.00020678,2]
[380488036,1755792656752,-480.0,0.00020678,2]
[380488038,1755792656761,-727.67,0.00020678,2]
[380488040,1755792656771,-480.0,0.00020678,2]
[380488042,1755792656781,-480.0,0.00020678,2]
[380488044,1755792656790,-605.54,0.00020678,2]
[380488046,1755792656800,-480.0,0.00020678,2]
[380488048,1755792656810,-480.0,0.00020678,2]
[380488050,1755792656819,-480.0,0.00020678,2]
[380488052,1755792656828,-480.0,0.00020678,2]
[380488054,1755792656837,-920.15,0.00020678,2]
[380488056,1755792656847,-480.0,0.00020678,2]
[380488058,1755792656856,-480.0,0.00020678,2]
[380488060,1755792656865,-902.24,0.00020678,2]
[380488062,1755792656874,-480.0,0.00020678,2]
[380488063,1755792656884,-480.0,0.00020678,2]
[380488064,1755792656893,-873.16,0.00020678,2]
[380488065,1755792656901,-762.55,0.00020678,2]
[380488066,1755792656911,-2255.59,0.00020678,2]
[380488067,1755792656920,-480.0,0.00020678,2]
[380488068,1755792656929,-480.0,0.00020678,2]
[380488069,1755792656939,-480.0,0.00020678,2]
[380488070,1755792656948,-480.0,0.00020678,2]
[380488071,1755792656958,-480.0,0.00020678,2]
[380488072,1755792656967,-480.0,0.00020678,2]
[380488073,1755792656982,-628.03,0.00020678,2]
[380488074,1755792656999,-480.0,0.00020678,2]
[380488075,1755792657014,-480.0,0.00020678,2]
[380488076,1755792657029,-676.81,0.00020678,2]
[380488077,1755792657045,-480.0,0.00020678,2]